bitfinex-derivatives/quotes_SOLF0:USTF0_20240906
["timestamp","ask_amount","ask_price","bid_price","bid_amount"]
[1725637140313,1.4004,127.96,127.9,37.57]
[1725637140717,1.4004,127.96,127.91,3.911]
[1725637141120,1.4004,127.96,127.9,7.78415052]
[1725637141914,1.4004,127.96,127.89,3.9116]
[1725637142111,37.57,127.94,127.81,3.8729115]
[1725637142317,37.57,127.94,127.83,37.57]
[1725637142519,3.9116,127.9,127.83,41.52481915]
[1725637142716,37.57,127.94,127.85,37.57]
[1725637143021,3.911,127.92,127.87,37.57]
[1725637143218,3.911,127.92,127.87,41.52325428]
[1725637143525,3.911,127.92,127.89,3.9115]
[1725637144122,1.3695,127.97,127.9,37.57]
[1725637144324,2.6495,128.01,127.92,37.57]
[1725637144625,2.6495,128.01,127.87,41.52325428]
[1725637144626,41.49486394,128.04,127.95,3.9096]
[1725637145122,41.49486394,128.04,127.94,37.57]
[1725637145325,41.49486394,128.04,127.94,41.52638402]
[1725637145823,3.9088,127.99,127.96,3.9094]
[1725637146125,41.49486394,128.04,127.94,41.52638402]
[1725637146313,3.908,128.01,127.94,41.52638402]
[1725637146519,41.49486394,128.04,127.94,41.52638402]
[1725637146716,37.57,128.06,127.96,37.57]
[1725637146928,37.57,128.06,127.99,3.9087]
[1725637146929,3.9074,128.03,127.99,3.9087]
[1725637147221,565.0,128.1,128.0,37.57]
[1725637147429,565.0,128.1,127.96,1.3405]
[1725637147430,3.9061,128.08,128.02,37.57]
[1725637148023,3.9062,128.07,128.03,3.9074]
[1725637148216,3.9062,128.07,128.02,3.89408964]
[1725637148424,3.9062,128.07,128.02,3.9075]
[1725637148624,3.9062,128.07,128.02,7.79885255]
[1725637148826,37.57,128.09,128.02,3.89135255]
[1725637149026,37.57,128.09,128.0,37.57]
[1725637149219,3.9076,128.03,127.98,37.57]
[1725637149421,3.9076,128.03,127.98,41.4788]
[1725637149724,37.57,128.05,127.96,38.9105]
[1725637150430,2.7597,128.06,128.0,37.57]
[1725637150623,2.7597,128.06,128.01,3.83099586]
[1725637150828,2.7597,128.06,128.0,37.57]
[1725637151128,2.7597,128.06,127.98,37.57]
[1725637151325,37.57,128.05,127.96,38.9105]
[1725637152025,37.57,128.05,127.95,2.6346]
[1725637152329,2.7597,128.06,127.96,37.57]
[1725637152515,2.7597,128.06,127.98,37.57]
[1725637152722,2.7597,128.06,127.95,3.9734]
[1725637152723,2.7597,128.06,128.0,37.57]
[1725637153024,38.897,128.09,128.0,37.57]
[1725637153225,4.0306,128.09,128.02,3.9077]
[1725637153423,4.0306,128.09,128.02,37.57]
[1725637153626,3.9067,128.06,128.02,45.45599076]
[1725637154021,4.0306,128.09,128.02,41.54839076]
[1725637154222,3.9064,128.07,128.03,3.9072]
[1725637155022,4.0306,128.09,128.03,3.9072]
[1725637155433,4.0306,128.09,128.02,3.97839076]
[1725637155637,41.6006,128.09,127.98,37.57]
[1725637155928,37.57,128.07,127.96,37.57]
[1725637156431,37.57,128.07,127.99,3.9085]
[1725637156630,3.908,128.02,127.96,37.57]
[1725637156828,37.57,128.07,127.96,37.57]
[1725637157130,3.9081,128.01,127.96,37.57]
[1725637157430,37.57,128.07,127.98,3.9087]
[1725637157724,37.57,128.05,127.96,37.57]
[1725637157932,37.57,128.03,127.94,3.95638402]
[1725637158128,37.57,128.01,127.9,37.57]
[1725637158426,37.57,128.01,127.91,3.911]
[1725637158637,37.57,127.99,127.91,3.911]
[1725637158926,3.91,127.95,127.91,3.911]
[1725637159130,41.40125297,128.01,127.9,37.57]
[1725637159325,41.40125297,128.01,127.92,37.57]
[1725637159326,3.9091,127.98,127.92,37.57]
[1725637160034,4.0874,128.02,127.94,37.57]
[1725637160332,8.04810833,128.02,127.94,41.42706582]
[1725637160631,37.57,127.99,127.92,3.9106]
[1725637161026,37.57,127.99,127.9,37.57]
[1725637161534,3.9104,127.94,127.9,37.57]
[1725637161731,37.57,127.99,127.9,3.9112]
[1725637162129,37.57,127.99,127.89,3.9116]
[1725637162326,37.57,127.99,127.88,40.2266]
[1725637162327,37.57,127.98,127.88,40.2266]
[1725637162628,37.57,127.98,127.9,3.9112]
[1725637162928,37.57,127.99,127.9,37.57]
[1725637163130,3.9097,127.96,127.9,37.57]
[1725637163427,37.57,127.99,127.92,3.9106]
[1725637163636,3.9098,127.96,127.92,3.9106]
[1725637164327,3.9098,127.96,127.93,3.9104]
[1725637164730,3.9098,127.96,127.93,3.9105]
[1725637165130,3.9093,127.97,127.92,37.57]
[1725637165334,37.57,128.01,127.92,37.57]
[1725637165533,3.9085,128.0,127.94,37.57]
[1725637165735,4.0874,128.02,127.94,41.55925891]
[1725637165928,4.0874,128.02,127.99,3.9086]
[1725637165929,2.739,128.02,127.99,3.9086]
[1725637166133,3.9076,128.03,127.99,3.9086]
[1725637166330,37.57,128.06,127.99,3.9086]
[1725637166331,37.57,128.06,127.99,3.9376332]
[1725637166530,37.57,128.06,127.98,3.9088]
[1725637166531,3.9079,128.02,127.98,3.9088]
[1725637167036,37.57,128.06,127.98,7.86168625]
[1725637167533,3.9083,128.01,127.98,3.95288625]
[1725637167733,3.9083,128.01,127.97,3.9092]
[1725637167925,37.57,128.06,127.97,3.9092]
[1725637168130,3.9082,128.01,127.97,3.9092]
[1725637168330,3.88966068,128.02,127.97,7.87273727]
[1725637168533,37.57,128.06,127.97,7.87273727]
[1725637168730,37.57,128.06,127.97,3.9092]
[1725637169331,3.9084,128.0,127.97,3.9092]
[1725637169526,3.94712025,128.02,127.96,3.8431458]
[1725637169828,3.9088,127.99,127.94,37.57]
[1725637170031,3.99480778,128.03,127.94,41.47177801]
[1725637170234,37.57,128.04,127.94,41.47177801]
[1725637170434,37.57,128.06,127.96,37.57]
[1725637170736,37.57,128.06,127.99,3.9087]
[1725637170932,37.57,128.06,127.96,37.57]
[1725637170933,3.9076,128.03,127.96,37.57]
[1725637171133,37.57,128.06,127.99,3.9084]
[1725637171433,41.536,128.08,127.98,37.57]
[1725637171637,41.536,128.08,128.0,3.9082]
[1725637172037,3.9073,128.04,128.01,3.908]
[1725637172832,41.536,128.08,128.01,3.908]
[1725637172833,3.907,128.05,128.02,3.9077]
[1725637173143,3.966,128.08,128.01,3.82447554]
[1725637173439,3.966,128.08,128.02,37.57]
[1725637173639,228.0,128.13,128.02,37.57]
[1725637173939,228.0,128.13,128.01,3.86551488]
[1725637173940,4.0812,128.12,128.04,37.57]
[1725637174131,4.0812,128.12,128.06,37.57]
[1725637174338,3.9055,128.1,128.06,3.9063]
[1725637174539,4.0812,128.12,128.06,3.9063]
[1725637174938,38.8569,128.17,128.06,37.57]
[1725637175940,3.905,128.11,128.06,37.57]
[1725637176539,3.905,128.11,128.07,3.9061]
[1725637176947,3.95746872,128.14,128.06,37.57]
[1725637177240,1.3304,128.13,128.06,37.57]
[1725637177645,1.3304,128.13,128.07,3.9061]
[1725637177841,1.3304,128.13,128.04,37.57]
[1725637178045,3.906,128.08,128.04,37.57]
[1725637178245,3.906,128.08,128.04,41.53497321]
[1725637179347,37.57,128.12,128.03,37.57]
[1725637179545,37.57,128.12,128.03,41.4462897]
[1725637179744,2.7098,128.11,128.05,37.57]
[1725637179939,1.3304,128.13,128.07,37.57]
[1725637180146,3.9049,128.12,128.07,37.57]
[1725637180341,1.3304,128.13,128.07,37.57]
[1725637180342,1.3304,128.13,128.07,41.46308878]
[1725637181445,3.9053,128.11,128.08,3.9057]
[1725637182148,3.905,128.11,128.08,3.9058]
[1725637182448,3.905,128.11,128.07,41.46308878]
[1725637182751,3.905,128.11,128.08,3.9057]
[1725637183144,3.9054,128.1,128.07,45.36908878]
[1725637184045,3.9056,128.09,128.07,45.36908878]
[1725637184344,1.3304,128.13,128.05,37.57]
[1725637184545,3.9058,128.09,128.05,37.57]
[1725637185049,3.9066,128.06,128.03,37.57]
[1725637185247,0.05861529,128.08,128.03,37.57]
[1725637185550,0.05861529,128.08,128.05,37.57]
[1725637185851,0.05861529,128.08,128.06,37.57]
[1725637186049,0.05861529,128.08,128.07,3.87520574]
[1725637186348,0.05861529,128.08,128.07,3.9062]
[1725637186546,0.05861529,128.08,128.07,7.75327925]
[1725637188151,2.7996,128.15,128.07,3.84707925]
[1725637188342,2.7996,128.15,128.1,37.57]
[1725637188343,1.4001,128.15,128.1,37.57]
[1725637189044,3.9043,128.14,128.1,37.57]
[1725637189244,1.4001,128.15,128.1,37.57]
[1725637189545,1.4001,128.15,128.11,0.05480793]
[1725637190451,1.4001,128.15,128.07,3.97099453]
[1725637190948,3.9056,128.09,128.07,3.97099453]
[1725637191143,1.4001,128.15,128.06,37.57]
[1725637191341,1.4001,128.15,128.08,37.57]
[1725637191949,3.9047,128.12,128.09,3.9054]
[1725637193241,3.905,128.11,128.08,41.4758]
[1725637193444,1.4001,128.15,128.08,37.57]
[1725637194240,3.9052,128.11,128.08,41.4758]
[1725637194844,3.9052,128.11,128.09,3.9056]
[1725637195046,3.9048,128.12,128.09,3.9056]
[1725637195750,3.9048,128.12,128.1,3.9053]
[1725637196145,3.9048,128.12,128.09,3.9055]
[1725637196344,40.197,128.19,128.1,37.57]
[1725637196553,1.3817,128.18,128.1,37.57]
[1725637196854,3.9045,128.13,128.1,41.4751]
[1725637197245,1.3817,128.18,128.12,41.4745]
[1725637197446,1.3817,128.18,128.12,37.57]
[1725637197748,1.3817,128.18,128.12,41.4747]
[1725637198253,3.9041,128.14,128.12,41.4747]
[1725637198552,1.3817,128.18,128.12,41.4747]
[1725637198553,3.9039,128.15,128.13,3.9043]
[1725637198947,3.9039,128.15,128.12,37.57]
[1725637199142,1.3817,128.18,128.12,37.57]
[1725637199650,1.3817,128.18,128.08,38.8501]
[1725637200049,1.3817,128.18,128.1,30.01]
[1725637200351,1.3817,128.18,128.08,1.2801]
[1725637200352,30.01,128.15,128.08,30.01]
[1725637200547,30.01,128.15,128.06,3.99872821]
[1725637200548,30.01,128.15,128.06,34.00872821]
[1725637200747,30.01,128.15,128.08,30.01]
[1725637200951,1.3817,128.18,128.1,30.01]
[1725637201151,1.3817,128.18,128.11,33.9148]
[1725637201347,1.3817,128.18,128.11,30.01]
[1725637201954,1.3817,128.18,128.11,37.5]
[1725637202155,1.3817,128.18,128.15,3.9035]
[1725637202156,3.903,128.18,128.15,3.9035]
[1725637202459,114.81329196,128.26,128.15,37.5]
[1725637202460,1.2971,128.24,128.15,37.5]
[1725637202661,3.902,128.21,128.18,3.9026]
[1725637202959,1.2971,128.24,128.17,37.5]
[1725637204354,1.2971,128.24,128.16,41.48005133]
[1725637204550,3.9025,128.2,128.16,41.4033]
[1725637204755,3.9025,128.2,128.16,41.44587421]
[1725637205360,3.9025,128.2,128.16,45.34917421]
[1725637206357,1.3153,128.25,128.19,37.5]
[1725637206567,3.81509979,128.28,128.19,37.5]
[1725637206866,1.3484,128.29,128.19,37.5]
[1725637207164,5.16310942,128.29,128.22,37.5]
[1725637207857,5.16310942,128.29,128.2,37.5]
[1725637208056,5.16310942,128.29,128.16,3.94587421]
[1725637208057,3.9018,128.22,128.19,3.9023]
[1725637208458,3.9018,128.22,128.19,3.88914072]
[1725637208660,3.9018,128.22,128.19,3.9025]
[1725637208860,37.5,128.28,128.19,3.81498751]
[1725637209056,42.66310942,128.29,128.18,37.5]
[1725637209261,3.9015,128.23,128.2,3.9022]
[1725637209655,42.66310942,128.29,128.2,41.42816873]
[1725637209858,3.9012,128.24,128.21,3.9019]
[1725637210060,1.3484,128.29,128.22,37.5]
[1725637210260,2.733,128.3,128.24,37.5]
[1725637210261,1.397,128.3,128.24,37.5]
[1725637210464,37.5,128.33,128.24,37.5]
[1725637210765,1.3824,128.34,128.24,37.5]
[1725637211064,3.8998,128.28,128.25,3.9006]
[1725637211660,3.83945718,128.33,128.24,37.5]
[1725637211858,3.8996,128.29,128.26,3.9003]
[1725637212053,1.3824,128.34,128.24,37.5]
[1725637212259,5.34320588,128.34,128.24,37.5]
[1725637212465,37.5,128.33,128.24,37.5]
[1725637212863,37.5,128.33,128.23,3.9012]
[1725637213361,3.9006,128.26,128.23,3.9012]
[1725637213569,37.5,128.33,128.23,3.9012]
[1725637214061,37.5,128.33,128.21,3.9243]
[1725637214062,3.9004,128.27,128.24,37.5]
[1725637214259,5.34320588,128.34,128.24,37.5]
[1725637214454,3.9004,128.26,128.24,37.5]
[1725637214659,37.5,128.33,128.24,37.5]
[1725637214873,37.5,128.31,128.22,37.5]
[1725637215064,37.5,128.29,128.2,41.42816873]
[1725637215368,2.7374,128.28,128.2,37.5]
[1725637215557,2.7374,128.28,128.2,45.36173531]
[1725637215754,3.9912406,128.27,128.2,41.45963531]
[1725637216155,3.9019,128.22,128.2,41.45963531]
[1725637216966,3.9912406,128.27,128.2,37.5]
[1725637216967,3.9019,128.21,128.2,37.5]
[1725637217169,41.4912406,128.27,128.19,3.83850175]
[1725637217464,1.3697,128.28,128.22,41.4016]
[1725637217773,1.3697,128.28,128.22,37.5]
[1725637218067,3.94073693,128.27,128.2,37.5]
[1725637218454,3.9015,128.23,128.2,41.402]
[1725637218658,3.9015,128.23,128.2,37.5]
[1725637218864,1.3697,128.28,128.2,37.5]
[1725637219066,3.9017,128.22,128.2,41.4021]
[1725637219768,3.9019,128.21,128.2,37.5]
[1725637220860,3.9018,128.22,128.2,37.5]
[1725637221468,1.3347,128.26,128.2,37.5]
[1725637221469,3.9015,128.23,128.2,37.5]
[1725637221764,1.3347,128.26,128.2,37.5]
[1725637221963,1.3347,128.26,128.17,37.5]
[1725637222358,1.3347,128.26,128.17,3.903]
[1725637222557,3.9024,128.2,128.17,41.403]
[1725637222964,3.9035,128.16,128.15,41.48162941]
[1725637223169,3.9035,128.16,128.13,37.5]
[1725637223362,37.5,128.23,128.14,3.9041]
[1725637223865,1.288,128.22,128.13,37.5]
[1725637224065,38.788,128.22,128.13,37.5]
[1725637224567,1.3347,128.26,128.15,37.5]
[1725637224762,2.6227,128.26,128.17,37.5]
[1725637225070,2.6227,128.26,128.19,41.4025]
[1725637225268,3.9017,128.22,128.19,41.4025]
[1725637225865,3.9015,128.23,128.2,3.9022]
[1725637226063,3.9015,128.23,128.21,29.96]
[1725637226274,2.6227,128.26,128.21,29.96]
[1725637226466,3.9016,128.22,128.21,29.96]
[1725637226964,3.9006,128.26,128.21,29.96]
[1725637227169,2.6505,128.3,128.2,29.96]
[1725637227170,2.6505,128.3,128.24,29.96]
[1725637227365,228.0,128.36,128.2,29.96]
[1725637227666,337.0,128.45,128.31,29.96]
[1725637227667,2.6505,128.38,128.31,29.96]
[1725637227971,2.6505,128.38,128.3,3.8992]
[1725637227972,6.46666721,128.38,128.3,3.8992]
[1725637228174,32.6105,128.38,128.3,29.96]
[1725637228668,3.8982,128.34,128.3,29.96]
[1725637229066,6.62705628,128.38,128.3,29.96]
[1725637229263,36.58705628,128.38,128.28,29.96]
[1725637229472,29.96,128.34,128.25,29.96]
[1725637229875,29.96,128.35,128.26,29.96]
[1725637230065,37.47,128.36,128.26,41.45476621]
[1725637230269,3.899,128.31,128.27,3.9001]
[1725637230470,37.47,128.34,128.26,3.98476621]
[1725637230669,37.47,128.36,128.26,37.47]
[1725637230868,3.8993,128.3,128.27,3.91259256]
[1725637231278,37.47,128.36,128.26,37.47]
[1725637231573,37.47,128.34,128.24,37.47]
[1725637231773,37.47,128.34,128.25,3.80374688]
[1725637231774,1.3985,128.33,128.25,3.80374688]
[1725637231973,3.9001,128.28,128.25,3.80374688]
[1725637232168,3.9001,128.28,128.24,37.47]
[1725637232373,3.92117537,128.31,128.24,41.34982181]
[1725637232566,3.9006,128.26,128.24,37.47]
[1725637233470,3.8644332,128.3,128.24,37.47]
[1725637233676,2.6756,128.32,128.24,37.47]
[1725637234471,3.9,128.28,128.24,41.3709]
[1725637234678,2.6756,128.32,128.24,41.3709]
[1725637235973,2.6756,128.32,128.25,3.9006]
[1725637237378,2.6756,128.32,128.24,37.47]
[1725637237571,2.6756,128.32,128.26,37.47]
[1725637238178,3.9,128.28,128.26,37.47]
[1725637238381,2.6756,128.32,128.24,37.47]
[1725637239677,3.8998,128.28,128.25,3.9006]
[1725637240075,3.9002,128.27,128.24,41.3709]
[1725637240285,2.6756,128.32,128.24,41.3709]
[1725637240489,2.6756,128.32,128.23,3.96977363]
[1725637240490,37.47,128.31,128.23,3.96977363]
[1725637240680,3.9009,128.25,128.22,41.3716]
[1725637241180,3.80521399,128.3,128.22,41.31657077]
[1725637241384,37.47,128.31,128.22,41.31657077]
[1725637241677,41.43556905,128.31,128.2,37.47]
[1725637241887,41.43556905,128.31,128.21,3.85983615]
[1725637242078,37.47,128.29,128.21,3.85983615]
[1725637242276,3.9015,128.23,128.21,3.85983615]
[1725637242484,3.9015,128.23,128.2,41.3721]
[1725637242677,3.9015,128.23,128.07,274.188]
[1725637242678,3.9018,128.22,128.21,3.82298533]
[1725637242880,3.9018,128.22,128.18,37.47]
[1725637243080,3.91155623,128.28,128.18,37.47]
[1725637243382,3.902,128.21,128.18,41.3727]
[1725637243586,5.30153398,128.27,128.18,37.47]
[1725637243880,42.77153398,128.27,128.18,37.47]
[1725637244079,2.6895,128.26,128.16,37.47]
[1725637244479,2.6895,128.26,128.19,3.9025]
[1725637244480,3.9019,128.22,128.19,3.9025]
[1725637244686,2.6895,128.26,128.19,3.9025]
[1725637244687,2.6895,128.26,128.19,3.89360794]
[1725637244875,2.6895,128.26,128.18,3.9026]
[1725637245180,2.6895,128.26,128.21,37.47]
[1725637245372,4.1004,128.31,128.23,41.3713]
[1725637245574,6.60278569,128.31,128.23,37.47]
[1725637246083,6.60278569,128.31,128.24,3.901]
[1725637246487,6.60278569,128.31,128.23,37.47]
[1725637246786,3.9006,128.26,128.23,41.3712]
[1725637247082,2.6924,128.31,128.23,37.47]
[1725637247382,2.6924,128.31,128.21,3.87409893]
[1725637247383,3.9,128.28,128.25,41.3706]
[1725637247685,3.9003,128.27,128.25,37.47]
[1725637247879,6.51186525,128.31,128.22,37.47]
[1725637248086,2.6924,128.31,128.22,37.47]
[1725637248682,3.9003,128.27,128.24,3.901]
[1725637248875,2.6924,128.31,128.25,37.47]
[1725637249278,3.9,128.28,128.25,41.3706]
[1725637249986,6.54833932,128.31,128.23,41.33491207]
[1725637250183,44.01833932,128.31,128.23,37.47]
[1725637250381,3.9009,128.25,128.23,37.47]
[1725637250889,3.99014037,128.3,128.23,37.47]
[1725637251686,3.9009,128.25,128.23,37.47]
[1725637252086,3.99014037,128.3,128.21,37.47]
[1725637252391,47.9606,128.31,128.21,41.32488564]
[1725637252588,40.1624,128.31,128.21,41.32488564]
[1725637252787,37.47,128.29,128.21,41.32488564]
[1725637253181,3.9016,128.22,128.21,41.32488564]
[1725637253686,3.9015,128.23,128.21,41.32488564]
[1725637254082,7.7985,128.3,128.21,41.32488564]
[1725637254683,6.690117,128.31,128.23,37.47]
[1725637254895,348.6864,128.43,128.27,37.47]
[1725637255089,1.3251,128.36,128.28,41.3697]
[1725637255591,3.899,128.31,128.29,3.8995]
[1725637255790,3.899,128.31,128.29,7.85369147]
[1725637256388,3.8988,128.32,128.29,7.85369147]
[1725637256792,1.3251,128.36,128.29,3.95419147]
[1725637256989,1.3251,128.36,128.28,37.47]
[1725637257287,1.3251,128.36,128.27,37.47]
[1725637257482,3.8994,128.3,128.27,41.31498121]
[1725637257796,3.8994,128.3,128.27,45.21508121]
[1725637259795,3.8995,128.29,128.27,45.21508121]
[1725637260186,3.8993,128.3,128.27,45.21508121]
[1725637260993,3.8995,128.29,128.27,45.21508121]
[1725637261488,1.3251,128.36,128.28,37.47]
[1725637261689,1.3251,128.36,128.27,41.31498121]
[1725637261893,1.3251,128.36,128.21,7.8036]
[1725637261894,37.47,128.32,128.09,252.3447]
[1725637262194,2.7922,128.31,128.23,37.47]
[1725637262493,38.7951,128.36,128.28,3.8996]
[1725637262686,3.8991,128.31,128.28,7.79896838]
[1725637262888,1.4015,128.35,128.28,3.89936838]
[1725637263190,1.4015,128.35,128.27,37.47]
[1725637263692,3.8991,128.31,128.28,7.80179821]
[1725637263885,1.4015,128.35,128.27,37.47]
[1725637264088,1.4015,128.35,128.27,41.4481435]
[1725637264289,1.4015,128.35,128.29,37.47]
[1725637264598,1.3232,128.36,128.31,37.47]
[1725637264787,3.898,128.34,128.31,41.3687]
[1725637265092,1.3232,128.36,128.29,37.47]
[1725637265286,228.0,128.43,128.35,3.8976]
[1725637265488,7.7882,128.47,128.35,3.8976]
[1725637265489,3.85305089,128.41,128.35,3.8976]
[1725637265700,2.7712,128.42,128.35,37.47]
[1725637265888,6.6669,128.42,128.38,3.8967]
[1725637266086,3.8957,128.42,128.38,3.8967]
[1725637266293,2.74,128.47,128.38,37.47]
[1725637266796,37.47,128.46,128.35,3.88580631]
[1725637266995,3.8963,128.4,128.36,3.8974]
[1725637267194,2.74,128.47,128.36,3.83160389]
[1725637267399,37.47,128.46,128.36,37.47]
[1725637267585,37.47,128.46,128.37,3.80547755]
[1725637267791,37.47,128.44,128.27,41.4595318]
[1725637267990,40.21,128.47,128.27,41.4595318]
[1725637267991,37.47,128.42,128.34,3.8979]
[1725637268184,2.74,128.47,128.38,37.47]
[1725637268390,2.74,128.47,128.4,37.47]
[1725637268697,37.47,128.53,128.4,37.47]
[1725637268698,40.08307585,128.65,128.42,37.47]
[1725637268898,2.6228,128.52,128.44,37.47]
[1725637269698,3.8939,128.48,128.44,41.3649]
[1725637269895,2.6228,128.52,128.42,41.40986737]
[1725637270194,2.6228,128.52,128.36,37.47]
[1725637270195,37.47,128.46,128.36,37.47]
[1725637270398,7.98296154,128.45,128.36,37.47]
[1725637270691,3.85799797,128.44,128.36,37.47]
[1725637270892,4.0275,128.45,128.34,37.47]
[1725637271098,4.0275,128.45,128.35,3.86891389]
[1725637271099,37.47,128.43,128.35,3.86891389]
[1725637271397,4.0275,128.45,128.34,37.47]
[1725637271398,0.05362872,128.42,128.39,0.04949279]
[1725637271995,0.05362872,128.42,128.4,37.47]
[1725637272203,1.3241,128.5,128.4,74.94]
[1725637272403,3.8941,128.47,128.45,37.47]
[1725637272701,2.7671,128.54,128.45,37.47]
[1725637272702,4.0912,128.54,128.45,41.27954518]
[1725637272891,3.8944,128.46,128.45,41.27954518]
[1725637273093,1.3859,128.57,128.45,41.27954518]
[1725637273401,37.47,128.55,128.45,41.27954518]
[1725637273696,4.0912,128.57,128.34,3.88138923]
[1725637273697,8.00754029,128.57,128.43,37.47]
[1725637273901,1.17040346,128.56,128.5,0.05632652]
[1725637274100,3.895,128.44,128.43,37.47]
[1725637274292,3.8886671,128.5,128.42,3.98104097]
[1725637274500,2.6129,128.5,128.39,37.47]
[1725637274795,6.55646409,128.5,128.4,3.85784291]
[1725637275093,44.02646409,128.5,128.41,37.47]
[1725637275404,44.02646409,128.5,128.41,41.36096246]
[1725637275805,37.47,128.48,128.38,3.86641503]
[1725637276000,37.47,128.48,128.37,37.47]
[1725637276196,37.47,128.46,128.37,37.47]
[1725637276398,6.55646409,128.5,128.37,41.39174415]
[1725637276604,37.47,128.47,128.37,41.39174415]
[1725637277094,0.05770677,128.43,128.37,41.39174415]
[1725637277507,3.8956,128.42,128.41,0.05118932]
[1725637278102,3.95300677,128.43,128.41,0.05118932]
[1725637278298,0.05770677,128.43,128.41,0.05118932]
[1725637278899,0.05770677,128.43,128.42,37.47]
[1725637279803,2.6129,128.5,128.42,37.47]
[1725637280003,2.6129,128.5,128.44,37.47]
[1725637280196,2.6129,128.5,128.44,41.3648]
[1725637280503,2.6129,128.5,128.45,3.91564547]
[1725637280701,2.6129,128.5,128.42,37.47]
[1725637281302,6.59643714,128.5,128.42,37.47]
[1725637281496,6.59643714,128.5,128.45,0.05319513]
[1725637281896,3.8944,128.46,128.45,0.05319513]
[1725637282308,2.6129,128.5,128.45,37.52319513]
[1725637282601,3.8944,128.46,128.45,0.05319513]
[1725637285803,0.04985729,128.47,128.37,41.39174415]
[1725637286110,0.04985729,128.47,128.38,3.96342932]
[1725637286401,37.47,128.47,128.38,3.92057301]
[1725637286599,37.47,128.47,128.37,37.47]
[1725637286799,3.8963,128.4,128.37,37.47]
[1725637287004,37.47,128.47,128.37,37.47]
[1725637287005,37.47,128.47,128.37,3.93109228]
[1725637287201,37.47,128.45,128.35,37.47]
[1725637287399,2.7195,128.44,128.35,37.47]
[1725637287599,1.3818,128.44,128.37,37.47]
[1725637287803,5.24683424,128.5,128.39,37.47]
[1725637287804,38.8077,128.49,128.39,37.47]
[1725637287998,40.1895,128.49,128.39,37.47]
[1725637288208,40.1895,128.49,128.39,41.33888057]
[1725637288899,2.7195,128.49,128.43,37.47]
[1725637289103,3.8946,128.46,128.43,37.47]
[1725637289499,2.7195,128.49,128.43,37.47]
[1725637289699,2.7195,128.49,128.41,41.3657]
[1725637289907,2.7195,128.49,128.41,41.27847803]
[1725637290106,1.3818,128.49,128.41,41.27847803]
[1725637290304,3.8942,128.47,128.43,3.895]
[1725637290502,1.3818,128.49,128.41,41.27847803]
[1725637291010,3.8949,128.45,128.41,41.27847803]
[1725637291710,3.8949,128.45,128.42,3.8954]
[1725637292714,1.3818,128.49,128.41,3.80847803]
[1725637292908,38.8518,128.49,128.39,37.47]
[1725637293109,38.8518,128.49,128.39,41.41458596]
[1725637293304,1.3818,128.49,128.39,41.41458596]
[1725637295306,38.8518,128.49,128.39,41.41458596]
[1725637295507,3.8957,128.42,128.39,45.31088596]
[1725637296013,38.8518,128.49,128.39,41.41458596]
[1725637296202,1.3818,128.49,128.39,41.41458596]
[1725637296501,1.3818,128.49,128.41,37.47]
[1725637296708,1.3818,128.49,128.43,3.8952]